[Event "*** Titled Tuesday Blitz"]
[Site "Chess.com"]
[Date "2020.04.28"]
[Round "8"]
[White "Gyapiking"]
[Black "Filip_Covic"]
[Result "1-0"]
[WhiteElo "2486"]
[BlackElo "2326"]
[TimeControl "180+1"]
[EndTime "11:34:30 PDT"]
[Termination "Gyapiking won on time"]

1. c4 {[%clk 0:03:00.9]} 1... c5 {[%clk 0:02:58.5]} 2. g3 {[%clk 0:03:00.2]}
2... Nc6 {[%clk 0:02:56.6]} 3. Bg2 {[%clk 0:03:00.3]} 3... g6 {[%clk 0:02:56.2]}
4. Nc3 {[%clk 0:03:00.2]} 4... Bg7 {[%clk 0:02:56.7]} 5. a3 {[%clk 0:03:00.4]}
5... d6 {[%clk 0:02:56.8]} 6. Nf3 {[%clk 0:02:58.7]} 6... Nf6 {[%clk 0:02:57.7]}
7. O-O {[%clk 0:02:57.9]} 7... Bd7 {[%clk 0:02:58.2]} 8. d3 {[%clk 0:02:56.8]}
8... Qc8 {[%clk 0:02:58.8]} 9. Rb1 {[%clk 0:02:56.5]} 9... Bh3 {[%clk
0:02:58.6]} 10. b4 {[%clk 0:02:56]} 10... h5 {[%clk 0:02:57.3]} 11. bxc5 {[%clk
0:02:48.9]} 11... dxc5 {[%clk 0:02:54.3]} 12. Nd5 {[%clk 0:02:47.7]} 12... Bxg2
{[%clk 0:02:48.8]} 13. Kxg2 {[%clk 0:02:47.1]} 13... h4 {[%clk 0:02:47.7]} 14.
Nxh4 {[%clk 0:02:35.1]} 14... Rxh4 {[%clk 0:02:29]} 15. gxh4 {[%clk 0:02:34]}
15... Qg4+ {[%clk 0:02:29.9]} 16. Kh1 {[%clk 0:02:31.6]} 16... Qxh4 {[%clk
0:02:20]} 17. f3 {[%clk 0:02:14.3]} 17... O-O-O {[%clk 0:02:06.9]} 18. Qb3
{[%clk 0:02:11.1]} 18... Na5 {[%clk 0:01:46.2]} 19. Qb5 {[%clk 0:02:07.5]} 19...
Nxd5 {[%clk 0:01:39.5]} 20. Qxc5+ {[%clk 0:01:22.3]} 20... Nc6 {[%clk
0:01:37.4]} 21. cxd5 {[%clk 0:01:19.4]} 21... Qh3 {[%clk 0:00:20.3]} 22. Be3
{[%clk 0:01:16.2]} 22... Be5 {[%clk 0:00:12.2]} 23. Bg1 {[%clk 0:01:12.1]} 23...
Bxh2 {[%clk 0:00:03.3]} 24. Bxh2 {[%clk 0:01:10.1]} 24... Rh8 {[%clk 0:00:03.4]}
25. Qf2 {[%clk 0:01:09.6]} 25... Ne5 {[%clk 0:00:02.7]} 26. Qg2 {[%clk
0:00:59.3]} 1-0

[Event "*** Titled Tuesday Blitz"]
[Site "Chess.com"]
[Date "2020.04.28"]
[Round "8"]
[White "SahajGrover"]
[Black "lupta_robin"]
[Result "1-0"]
[WhiteElo "2720"]
[BlackElo "2559"]
[TimeControl "180+1"]
[EndTime "11:34:31 PDT"]
[Termination "SahajGrover won by resignation"]

1. d4 {[%clk 0:03:00.9]} 1... Nf6 {[%clk 0:02:58.2]} 2. Bf4 {[%clk 0:03:00.3]}
2... g6 {[%clk 0:02:56.3]} 3. Nc3 {[%clk 0:03:00.5]} 3... d5 {[%clk 0:02:55.1]}
4. e3 {[%clk 0:03:00.5]} 4... Bg7 {[%clk 0:02:53.7]} 5. h4 {[%clk 0:03:00.9]}
5... c6 {[%clk 0:02:52.2]} 6. Nf3 {[%clk 0:02:57.3]} 6... Qb6 {[%clk 0:02:48.3]}
7. b3 {[%clk 0:02:33.4]} 7... Bf5 {[%clk 0:02:27.8]} 8. Qd2 {[%clk 0:02:27.6]}
8... h5 {[%clk 0:02:23.2]} 9. Bd3 {[%clk 0:02:22.6]} 9... Bxd3 {[%clk 0:02:19]}
10. cxd3 {[%clk 0:02:20.9]} 10... Nbd7 {[%clk 0:02:15.1]} 11. Ne5 {[%clk
0:02:19.7]} 11... Rc8 {[%clk 0:01:55.2]} 12. f3 {[%clk 0:02:13.3]} 12... Qa5
{[%clk 0:01:50.4]} 13. Na4 {[%clk 0:01:56.3]} 13... Qxd2+ {[%clk 0:01:47.2]} 14.
Kxd2 {[%clk 0:01:56.8]} 14... b5 {[%clk 0:01:23.5]} 15. Nc3 {[%clk 0:01:53.8]}
15... e6 {[%clk 0:01:09.3]} 16. Rac1 {[%clk 0:01:52]} 16... O-O {[%clk
0:01:04.2]} 17. Rc2 {[%clk 0:01:45.4]} 17... Nxe5 {[%clk 0:01:03.5]} 18. Bxe5
{[%clk 0:01:44]} 18... Nd7 {[%clk 0:00:56.7]} 19. Bd6 {[%clk 0:01:40.5]} 19...
Rfd8 {[%clk 0:00:56.1]} 20. Rhc1 {[%clk 0:01:40.6]} 20... Nf6 {[%clk 0:00:30.6]}
21. Be5 {[%clk 0:01:36.5]} 21... a6 {[%clk 0:00:18.8]} 22. Ne2 {[%clk
0:01:34.1]} 22... Nd7 {[%clk 0:00:16.2]} 23. Bxg7 {[%clk 0:01:34.3]} 23... Kxg7
{[%clk 0:00:17.1]} 24. Rxc6 {[%clk 0:01:35]} 24... Ra8 {[%clk 0:00:16.4]} 25.
Nf4 {[%clk 0:01:29.5]} 25... Kf8 {[%clk 0:00:15.4]} 26. Rc7 {[%clk 0:01:23.8]}
26... Ke7 {[%clk 0:00:15]} 27. R1c6 {[%clk 0:01:24.2]} 27... Rdb8 {[%clk
0:00:12.9]} 28. e4 {[%clk 0:01:20.4]} 28... dxe4 {[%clk 0:00:12.6]} 29. dxe4
{[%clk 0:01:21.3]} 29... a5 {[%clk 0:00:12.7]} 30. d5 {[%clk 0:01:20.2]} 30...
e5 {[%clk 0:00:06.7]} 31. Nd3 {[%clk 0:01:15]} 31... f6 {[%clk 0:00:06.9]} 32.
Nc5 {[%clk 0:01:15.3]} 32... Rd8 {[%clk 0:00:07.5]} 33. Re6+ {[%clk 0:01:14.9]}
1-0

[Event "*** Titled Tuesday Blitz"]
[Site "Chess.com"]
[Date "2020.04.28"]
[Round "8"]
[White "TERMINATOR_PC"]
[Black "bait_or_mate"]
[Result "0-1"]
[WhiteElo "2413"]
[BlackElo "2560"]
[TimeControl "180+1"]
[EndTime "11:34:31 PDT"]
[Termination "bait_or_mate won by resignation"]

1. e4 {[%clk 0:03:00.9]} 1... c5 {[%clk 0:02:59.7]} 2. Nc3 {[%clk 0:02:59.1]}
2... Nc6 {[%clk 0:02:59.3]} 3. g3 {[%clk 0:02:59.6]} 3... g6 {[%clk 0:02:58.8]}
4. Bg2 {[%clk 0:03:00.2]} 4... Bg7 {[%clk 0:02:59.7]} 5. d3 {[%clk 0:03:00.8]}
5... e6 {[%clk 0:03:00.6]} 6. Be3 {[%clk 0:03:01.4]} 6... d6 {[%clk 0:03:00.7]}
7. Qd2 {[%clk 0:03:01.9]} 7... Nge7 {[%clk 0:03:01.1]} 8. Bh6 {[%clk 0:03:02.1]}
8... O-O {[%clk 0:03:01.7]} 9. h4 {[%clk 0:03:01.7]} 9... f6 {[%clk 0:03:01.5]}
10. Bxg7 {[%clk 0:03:01.6]} 10... Kxg7 {[%clk 0:03:02.4]} 11. h5 {[%clk
0:03:02.5]} 11... g5 {[%clk 0:03:03]} 12. h6+ {[%clk 0:03:03.2]} 12... Kg8
{[%clk 0:03:03]} 13. f4 {[%clk 0:02:58.9]} 13... Ng6 {[%clk 0:02:55.1]} 14.
O-O-O {[%clk 0:02:49.7]} 14... Nd4 {[%clk 0:02:41.7]} 15. Nf3 {[%clk 0:02:40.7]}
15... Nxf3 {[%clk 0:02:31.9]} 16. Bxf3 {[%clk 0:02:41.6]} 16... Rb8 {[%clk
0:02:14.3]} 17. Rdf1 {[%clk 0:02:35.3]} 17... b5 {[%clk 0:02:11.2]} 18. Bh5
{[%clk 0:02:32.3]} 18... b4 {[%clk 0:01:54.5]} 19. Ne2 {[%clk 0:02:29.4]} 19...
Bb7 {[%clk 0:01:25.8]} 20. Bxg6 {[%clk 0:02:23.4]} 20... hxg6 {[%clk 0:01:26.7]}
21. fxg5 {[%clk 0:02:22.7]} 21... fxg5 {[%clk 0:01:26]} 22. Rxf8+ {[%clk
0:02:23.2]} 22... Qxf8 {[%clk 0:01:25.8]} 23. Qxg5 {[%clk 0:02:21.3]} 23... Kh7
{[%clk 0:01:26.1]} 24. Nf4 {[%clk 0:02:16.9]} 24... Qf7 {[%clk 0:01:24.6]} 25.
Re1 {[%clk 0:01:45.9]} 25... e5 {[%clk 0:01:20.3]} 26. Nd5 {[%clk 0:01:39.9]}
26... Bxd5 {[%clk 0:01:19.8]} 27. exd5 {[%clk 0:01:40.8]} 27... Rf8 {[%clk
0:01:18.3]} 28. b3 {[%clk 0:01:32.5]} 28... Qf6 {[%clk 0:01:18.4]} 29. Qe3
{[%clk 0:01:25.4]} 29... Qf3 {[%clk 0:00:53.3]} 30. Qg5 {[%clk 0:01:19]} 30...
Qf6 {[%clk 0:00:52.5]} 31. Qe3 {[%clk 0:01:19]} 31... Qf2 {[%clk 0:00:52.3]} 32.
Kb2 {[%clk 0:00:45.5]} 32... Qxe3 {[%clk 0:00:50.6]} 33. Rxe3 {[%clk 0:00:46.4]}
33... Kxh6 {[%clk 0:00:51.1]} 34. a3 {[%clk 0:00:47]} 34... a5 {[%clk
0:00:50.4]} 35. axb4 {[%clk 0:00:46]} 35... axb4 {[%clk 0:00:51.3]} 36. c3
{[%clk 0:00:45]} 36... Rf2+ {[%clk 0:00:50.8]} 37. Kc1 {[%clk 0:00:44.2]} 37...
bxc3 {[%clk 0:00:51.1]} 38. Rxe5 {[%clk 0:00:44.3]} 38... dxe5 {[%clk 0:00:49]}
0-1

[Event "*** Titled Tuesday Blitz"]
[Site "Chess.com"]
[Date "2020.04.28"]
[Round "8"]
[White "archess2"]
[Black "guillembaches"]
[Result "1-0"]
[WhiteElo "2246"]
[BlackElo "2409"]
[TimeControl "180+1"]
[EndTime "11:34:34 PDT"]
[Termination "archess2 won on time"]

1. d4 {[%clk 0:03:00.9]} 1... Nf6 {[%clk 0:02:59.6]} 2. c4 {[%clk 0:03:00.1]}
2... e6 {[%clk 0:02:59.8]} 3. Nc3 {[%clk 0:02:59.7]} 3... Bb4 {[%clk 0:03:00]}
4. Qc2 {[%clk 0:02:59.5]} 4... O-O {[%clk 0:02:59]} 5. e4 {[%clk 0:02:56.2]}
5... d5 {[%clk 0:02:57.9]} 6. e5 {[%clk 0:02:56.3]} 6... Ne4 {[%clk 0:02:57.6]}
7. Bd3 {[%clk 0:02:55.4]} 7... f5 {[%clk 0:02:55.8]} 8. exf6 {[%clk 0:02:51.8]}
8... Qxf6 {[%clk 0:02:45.3]} 9. Nf3 {[%clk 0:02:49.5]} 9... Nc6 {[%clk
0:02:38.8]} 10. Bxe4 {[%clk 0:02:31.2]} 10... dxe4 {[%clk 0:02:33.7]} 11. Qxe4
{[%clk 0:02:26.3]} 11... Bd7 {[%clk 0:01:51.7]} 12. Bg5 {[%clk 0:02:23.2]} 12...
Qf5 {[%clk 0:01:44.8]} 13. Qxf5 {[%clk 0:02:19.3]} 13... Rxf5 {[%clk 0:01:45.7]}
14. Be3 {[%clk 0:02:11.6]} 14... e5 {[%clk 0:01:19.4]} 15. d5 {[%clk 0:02:10.7]}
15... Nd4 {[%clk 0:01:19.2]} 16. Bxd4 {[%clk 0:02:06]} 16... exd4 {[%clk
0:01:18.8]} 17. Nxd4 {[%clk 0:02:05.4]} 17... Re8+ {[%clk 0:01:16]} 18. Kf1
{[%clk 0:02:01]} 18... Rf4 {[%clk 0:01:05.3]} 19. Nce2 {[%clk 0:01:58]} 19...
Rfe4 {[%clk 0:00:58.2]} 20. f3 {[%clk 0:01:54.3]} 20... Re3 {[%clk 0:00:53.7]}
21. a3 {[%clk 0:01:52.9]} 21... Bc5 {[%clk 0:00:52.8]} 22. b4 {[%clk 0:01:51.7]}
22... Be7 {[%clk 0:00:41.4]} 23. Kf2 {[%clk 0:01:45.4]} 23... Bf6 {[%clk
0:00:39.1]} 24. Rhe1 {[%clk 0:01:42.7]} 24... c6 {[%clk 0:00:18.8]} 25. dxc6
{[%clk 0:01:40.7]} 25... bxc6 {[%clk 0:00:18.3]} 26. Rad1 {[%clk 0:01:39.9]}
26... c5 {[%clk 0:00:16.1]} 27. bxc5 {[%clk 0:01:37.8]} 27... Rxa3 {[%clk
0:00:16.1]} 28. c6 {[%clk 0:01:36.3]} 28... Bc8 {[%clk 0:00:14.7]} 29. Nb5
{[%clk 0:01:34.6]} 29... Ra2 {[%clk 0:00:14]} 30. Nd6 {[%clk 0:01:27.6]} 30...
Rd8 {[%clk 0:00:12.1]} 31. c7 {[%clk 0:01:25.4]} 31... Rf8 {[%clk 0:00:11.2]}
32. Kf1 {[%clk 0:01:23.3]} 32... Ba6 {[%clk 0:00:10.9]} 33. Nf4 {[%clk
0:01:19.3]} 33... Bc3 {[%clk 0:00:07.4]} 34. Ne6 {[%clk 0:01:16.3]} 1-0

[Event "*** Titled Tuesday Blitz"]
[Site "Chess.com"]
[Date "2020.04.28"]
[Round "8"]
[White "maxsergej"]
[Black "calin_dragomirescu"]
[Result "1/2-1/2"]
[WhiteElo "2130"]
[BlackElo "2241"]
[TimeControl "180+1"]
[EndTime "11:34:34 PDT"]
[Termination "Game drawn by agreement"]

1. e4 {[%clk 0:03:00.9]} 1... g6 {[%clk 0:03:00.9]} 2. d4 {[%clk 0:03:00.5]}
2... Bg7 {[%clk 0:03:01.2]} 3. Nc3 {[%clk 0:03:00.3]} 3... d6 {[%clk 0:03:01.7]}
4. f4 {[%clk 0:02:59.8]} 4... Nf6 {[%clk 0:03:00.8]} 5. Nf3 {[%clk 0:02:59.7]}
5... O-O {[%clk 0:03:00.5]} 6. Bd3 {[%clk 0:02:59.7]} 6... Na6 {[%clk
0:02:59.9]} 7. e5 {[%clk 0:02:59]} 7... Nd7 {[%clk 0:02:59.2]} 8. Ng5 {[%clk
0:02:53.8]} 8... e6 {[%clk 0:02:57]} 9. h4 {[%clk 0:02:52.7]} 9... h6 {[%clk
0:02:54.6]} 10. h5 {[%clk 0:02:51.8]} 10... hxg5 {[%clk 0:02:53.7]} 11. hxg6
{[%clk 0:02:51.3]} 11... fxg6 {[%clk 0:02:53.9]} 12. Bxg6 {[%clk 0:02:51.4]}
12... Rxf4 {[%clk 0:02:46.7]} 13. Bxf4 {[%clk 0:02:48.1]} 13... gxf4 {[%clk
0:02:46.2]} 14. Qh5 {[%clk 0:02:46]} 14... dxe5 {[%clk 0:02:33]} 15. Ne4 {[%clk
0:02:33.5]} 15... Nf6 {[%clk 0:02:26.7]} 16. Nxf6+ {[%clk 0:02:26.1]} 16... Qxf6
{[%clk 0:02:26.6]} 17. dxe5 {[%clk 0:02:09.6]} 17... Qxe5+ {[%clk 0:02:25.8]}
18. Qxe5 {[%clk 0:02:09.3]} 18... Bxe5 {[%clk 0:02:25.9]} 19. O-O-O {[%clk
0:02:09.3]} 19... Kg7 {[%clk 0:02:20.3]} 20. Be4 {[%clk 0:02:08.3]} 20... Nc5
{[%clk 0:02:18.5]} 21. Rh7+ {[%clk 0:02:01.3]} 21... Kf6 {[%clk 0:02:18]} 22.
Bf3 {[%clk 0:01:56.7]} 22... Bd7 {[%clk 0:02:12.9]} 23. Rdxd7 {[%clk 0:01:54.2]}
23... Nxd7 {[%clk 0:02:12.2]} 24. Rxd7 {[%clk 0:01:54.3]} 24... Bd6 {[%clk
0:02:08.2]} 25. Bxb7 {[%clk 0:01:42.5]} 25... Rh8 {[%clk 0:02:05.4]} 26. Bf3
{[%clk 0:01:37.4]} 26... e5 {[%clk 0:01:56]} 27. Bd5 {[%clk 0:01:34.1]} 27...
Rh2 {[%clk 0:01:50.7]} 28. a4 {[%clk 0:01:31.6]} 28... a5 {[%clk 0:01:49.9]} 29.
c3 {[%clk 0:01:30.6]} 29... Kf5 {[%clk 0:01:44.6]} 30. Rf7+ {[%clk 0:01:28.6]}
30... Kg4 {[%clk 0:01:41.2]} 31. Rg7+ {[%clk 0:01:26.8]} 31... Kf5 {[%clk
0:01:40.3]} 32. Rf7+ {[%clk 0:01:21.4]} 32... Kg6 {[%clk 0:01:40]} 33. Rd7
{[%clk 0:01:19.4]} 33... Rh1+ {[%clk 0:01:32.9]} 34. Kc2 {[%clk 0:01:18.8]}
34... Re1 {[%clk 0:01:32.6]} 35. Kd3 {[%clk 0:01:15.3]} 35... Re3+ {[%clk
0:01:31.3]} 36. Kc4 {[%clk 0:01:14.1]} 36... e4 {[%clk 0:01:27.5]} 37. b4 {[%clk
0:01:13.6]} 37... axb4 {[%clk 0:01:26.8]} 38. cxb4 {[%clk 0:01:13.8]} 38... Re2
{[%clk 0:01:22.3]} 39. a5 {[%clk 0:01:09.8]} 39... e3 {[%clk 0:01:22.5]} 40. a6
{[%clk 0:01:08.1]} 40... Ra2 {[%clk 0:01:19]} 41. Kb5 {[%clk 0:01:08]} 41... Ra1
{[%clk 0:01:16.9]} 42. Rd8 {[%clk 0:00:57.9]} 42... e2 {[%clk 0:01:12]} 43. Re8
{[%clk 0:00:58]} 43... e1=Q {[%clk 0:01:07.7]} 44. Rxe1 {[%clk 0:00:57.6]} 44...
Rxe1 {[%clk 0:01:07.2]} 45. a7 {[%clk 0:00:58]} 45... Ra1 {[%clk 0:01:05.6]} 46.
a8=Q {[%clk 0:00:57.7]} 46... Rxa8 {[%clk 0:01:05.4]} 47. Bxa8 {[%clk
0:00:57.6]} 47... Kf5 {[%clk 0:01:05.9]} 48. Bf3 {[%clk 0:00:57.5]} 48... Ke5
{[%clk 0:01:05.5]} 49. Kc6 {[%clk 0:00:57.6]} 49... Bxb4 {[%clk 0:01:04.7]} 50.
Kxc7 {[%clk 0:00:57.5]} 1/2-1/2

[Event "*** Titled Tuesday Blitz"]
[Site "Chess.com"]
[Date "2020.04.28"]
[Round "8"]
[White "crescentmoon2411"]
[Black "Duhless"]
[Result "1-0"]
[WhiteElo "2819"]
[BlackElo "3076"]
[TimeControl "180+1"]
[EndTime "11:34:35 PDT"]
[Termination "crescentmoon2411 won by resignation"]

1. e4 {[%clk 0:03:00.9]} 1... c5 {[%clk 0:02:57.5]} 2. Nf3 {[%clk 0:03:00.3]}
2... Nc6 {[%clk 0:02:56.8]} 3. Bb5 {[%clk 0:02:59.7]} 3... g6 {[%clk 0:02:56.4]}
4. Bxc6 {[%clk 0:02:59.4]} 4... bxc6 {[%clk 0:02:57.3]} 5. d4 {[%clk 0:02:54]}
5... Ba6 {[%clk 0:02:53.6]} 6. b3 {[%clk 0:02:10.8]} 6... cxd4 {[%clk
0:02:32.7]} 7. Qxd4 {[%clk 0:02:03.9]} 7... f6 {[%clk 0:02:25.1]} 8. c4 {[%clk
0:01:59.9]} 8... d6 {[%clk 0:02:20.5]} 9. O-O {[%clk 0:01:56.7]} 9... Nh6 {[%clk
0:02:19.4]} 10. Nc3 {[%clk 0:01:52.3]} 10... Nf7 {[%clk 0:02:18.6]} 11. Rd1
{[%clk 0:01:50.3]} 11... Bg7 {[%clk 0:02:17.1]} 12. Bb2 {[%clk 0:01:39.5]} 12...
O-O {[%clk 0:02:15.3]} 13. c5 {[%clk 0:01:31.7]} 13... Qc8 {[%clk 0:02:00.6]}
14. Rac1 {[%clk 0:01:27.1]} 14... f5 {[%clk 0:01:31.5]} 15. Nd5 {[%clk
0:01:25.3]} 15... e5 {[%clk 0:00:57.3]} 16. Ne7+ {[%clk 0:01:25.4]} 16... Kh8
{[%clk 0:00:55.9]} 17. Nxc8 {[%clk 0:01:25.4]} 17... exd4 {[%clk 0:00:53.8]} 18.
Nxd6 {[%clk 0:01:25.5]} 18... Nxd6 {[%clk 0:00:50.8]} 19. cxd6 {[%clk
0:01:25.5]} 19... Be2 {[%clk 0:00:50.6]} 20. Rxd4 {[%clk 0:01:10.1]} 20... fxe4
{[%clk 0:00:36.6]} 21. Ng5 {[%clk 0:01:00.5]} 21... Bxd4 {[%clk 0:00:25.9]} 22.
Bxd4+ {[%clk 0:01:01.4]} 22... Kg8 {[%clk 0:00:26.8]} 23. Nxe4 {[%clk
0:00:55.9]} 23... Rac8 {[%clk 0:00:15.5]} 24. Nf6+ {[%clk 0:00:52.2]} 24... Kf7
{[%clk 0:00:14]} 25. Nxh7 {[%clk 0:00:52.4]} 25... c5 {[%clk 0:00:12.1]} 26.
Nxf8 {[%clk 0:00:47.4]} 1-0

[Event "*** Titled Tuesday Blitz"]
[Site "Chess.com"]
[Date "2020.04.28"]
[Round "8"]
[White "Winehouse83"]
[Black "Nafania1"]
[Result "1-0"]
[WhiteElo "2528"]
[BlackElo "2384"]
[TimeControl "180+1"]
[EndTime "11:34:37 PDT"]
[Termination "Winehouse83 won by resignation"]

1. d4 {[%clk 0:03:00.9]} 1... Nf6 {[%clk 0:02:59.5]} 2. c4 {[%clk 0:03:01.2]}
2... e6 {[%clk 0:02:59.8]} 3. Nc3 {[%clk 0:03:01.8]} 3... Bb4 {[%clk 0:02:59.3]}
4. Qc2 {[%clk 0:03:02.1]} 4... O-O {[%clk 0:02:58.7]} 5. e4 {[%clk 0:03:01.9]}
5... d6 {[%clk 0:02:58.1]} 6. e5 {[%clk 0:03:01.6]} 6... Nfd7 {[%clk 0:02:51.7]}
7. Nf3 {[%clk 0:02:50.4]} 7... c5 {[%clk 0:02:15.7]} 8. a3 {[%clk 0:02:36.7]}
8... Bxc3+ {[%clk 0:02:08.9]} 9. bxc3 {[%clk 0:02:35.3]} 9... cxd4 {[%clk
0:02:09.1]} 10. exd6 {[%clk 0:02:24.6]} 10... dxc3 {[%clk 0:02:01.3]} 11. Qxc3
{[%clk 0:02:21]} 11... Nc5 {[%clk 0:01:52.1]} 12. Bb2 {[%clk 0:02:13.2]} 12...
f6 {[%clk 0:01:51.6]} 13. Rd1 {[%clk 0:02:04.8]} 13... Bd7 {[%clk 0:01:30.7]}
14. Be2 {[%clk 0:01:59.9]} 14... Ne4 {[%clk 0:01:19.8]} 15. Qe3 {[%clk
0:01:49.4]} 15... Qa5+ {[%clk 0:01:18.1]} 16. Nd2 {[%clk 0:01:48.3]} 16... Nxd6
{[%clk 0:01:14.6]} 17. O-O {[%clk 0:01:41.6]} 17... Nf5 {[%clk 0:01:14.5]} 18.
Qh3 {[%clk 0:01:34.9]} 18... Qb6 {[%clk 0:01:07.4]} 19. Rb1 {[%clk 0:01:32.6]}
19... Qc7 {[%clk 0:01:03.2]} 20. Bd3 {[%clk 0:01:29.5]} 20... g6 {[%clk
0:00:51.9]} 21. g4 {[%clk 0:01:10.3]} 21... Ng7 {[%clk 0:00:51.1]} 22. g5 {[%clk
0:00:49.4]} 22... e5 {[%clk 0:00:51.3]} 23. Qe3 {[%clk 0:00:30.5]} 23... f5
{[%clk 0:00:48.2]} 24. Bxe5 {[%clk 0:00:27.4]} 24... Re8 {[%clk 0:00:38.1]} 25.
Bxc7 {[%clk 0:00:25.9]} 25... Rxe3 {[%clk 0:00:36.2]} 26. fxe3 {[%clk
0:00:26.8]} 1-0

[Event "*** Titled Tuesday Blitz"]
[Site "Chess.com"]
[Date "2020.04.28"]
[Round "8"]
[White "827883"]
[Black "stasiek18"]
[Result "1-0"]
[WhiteElo "2189"]
[BlackElo "2327"]
[TimeControl "180+1"]
[EndTime "11:34:37 PDT"]
[Termination "827883 won by resignation"]

1. e4 {[%clk 0:03:00.8]} 1... g6 {[%clk 0:02:59.5]} 2. d4 {[%clk 0:03:00.9]}
2... Bg7 {[%clk 0:02:59.9]} 3. Nf3 {[%clk 0:03:00]} 3... d6 {[%clk 0:02:58.7]}
4. Be2 {[%clk 0:03:00]} 4... Bg4 {[%clk 0:02:56.9]} 5. O-O {[%clk 0:02:59.9]}
5... Nc6 {[%clk 0:02:56.1]} 6. d5 {[%clk 0:02:53]} 6... Ne5 {[%clk 0:02:47.2]}
7. Nxe5 {[%clk 0:02:31.9]} 7... Bxe2 {[%clk 0:02:48.1]} 8. Qxe2 {[%clk
0:02:32.1]} 8... Bxe5 {[%clk 0:02:29.9]} 9. Qb5+ {[%clk 0:02:31.4]} 9... Kf8
{[%clk 0:02:24.5]} 10. Qxb7 {[%clk 0:02:30.3]} 10... Nf6 {[%clk 0:02:22.4]} 11.
Bh6+ {[%clk 0:02:10.1]} 11... Kg8 {[%clk 0:02:22.1]} 12. Nc3 {[%clk 0:02:09.9]}
12... Bxh2+ {[%clk 0:02:07.6]} 13. Kh1 {[%clk 0:01:57.8]} 13... Be5 {[%clk
0:02:07.1]} 14. f4 {[%clk 0:01:53.4]} 14... Bxc3 {[%clk 0:02:06.3]} 15. bxc3
{[%clk 0:01:53.2]} 15... Nxe4 {[%clk 0:02:05.7]} 16. Rf3 {[%clk 0:01:45.8]}
16... f5 {[%clk 0:01:47.4]} 17. Qb4 {[%clk 0:01:39.2]} 17... Kf7 {[%clk
0:01:35.1]} 18. Qd4 {[%clk 0:01:37.3]} 18... Rg8 {[%clk 0:01:35]} 19. Re1 {[%clk
0:01:36.3]} 19... c5 {[%clk 0:01:27.8]} 20. dxc6 {[%clk 0:01:19.9]} 20... Qb6
{[%clk 0:01:27.5]} 21. Rxe4 {[%clk 0:01:12.2]} 21... fxe4 {[%clk 0:01:27.4]} 22.
Qxe4 {[%clk 0:01:12.5]} 22... Qb1+ {[%clk 0:00:26.5]} 23. Kh2 {[%clk 0:01:12.2]}
23... Qxa2 {[%clk 0:00:26.5]} 24. f5 {[%clk 0:01:09.3]} 24... g5 {[%clk
0:00:26.6]} 25. f6 {[%clk 0:01:05.9]} 25... e5 {[%clk 0:00:14.8]} 26. Qxh7+
{[%clk 0:01:03.9]} 26... Ke6 {[%clk 0:00:14]} 27. Qe7+ {[%clk 0:01:00]} 27...
Kd5 {[%clk 0:00:14.2]} 28. Qf7+ {[%clk 0:01:00.6]} 28... Kc5 {[%clk 0:00:10.9]}
29. Qxa2 {[%clk 0:01:01.5]} 29... Rh8 {[%clk 0:00:11.1]} 30. Rh3 {[%clk
0:00:57.9]} 1-0

[Event "*** Titled Tuesday Blitz"]
[Site "Chess.com"]
[Date "2020.04.28"]
[Round "8"]
[White "BillCoe"]
[Black "HanSchut"]
[Result "0-1"]
[WhiteElo "2062"]
[BlackElo "2229"]
[TimeControl "180+1"]
[EndTime "11:34:37 PDT"]
[Termination "HanSchut won by resignation"]

1. e4 {[%clk 0:03:00.9]} 1... c5 {[%clk 0:02:59.7]} 2. Nf3 {[%clk 0:03:01.1]}
2... d6 {[%clk 0:03:00.2]} 3. d4 {[%clk 0:03:01.1]} 3... cxd4 {[%clk 0:03:01.1]}
4. Nxd4 {[%clk 0:03:01.5]} 4... Nf6 {[%clk 0:03:01.7]} 5. Nc3 {[%clk 0:03:01.8]}
5... a6 {[%clk 0:03:02.2]} 6. h3 {[%clk 0:03:01.6]} 6... e6 {[%clk 0:02:58.5]}
7. g4 {[%clk 0:03:00.7]} 7... d5 {[%clk 0:02:59.1]} 8. exd5 {[%clk 0:02:58.7]}
8... Nxd5 {[%clk 0:03:00]} 9. Bg2 {[%clk 0:02:58]} 9... Bb4 {[%clk 0:03:00.5]}
10. Bd2 {[%clk 0:02:50.6]} 10... Bxc3 {[%clk 0:02:59.8]} 11. bxc3 {[%clk
0:02:49.8]} 11... Qc7 {[%clk 0:02:58.8]} 12. Qf3 {[%clk 0:02:45]} 12... O-O
{[%clk 0:02:52.4]} 13. O-O {[%clk 0:02:44.3]} 13... Nc6 {[%clk 0:02:51.7]} 14.
Rab1 {[%clk 0:02:24]} 14... Bd7 {[%clk 0:02:37.1]} 15. Qe4 {[%clk 0:01:58.2]}
15... Rac8 {[%clk 0:02:04.4]} 16. Rb2 {[%clk 0:01:37.6]} 16... Na5 {[%clk
0:01:50.1]} 17. Rfb1 {[%clk 0:01:27.3]} 17... b5 {[%clk 0:01:49.6]} 18. Bf1
{[%clk 0:01:18]} 18... Nxc3 {[%clk 0:01:39.8]} 19. Qf3 {[%clk 0:01:13.5]} 19...
Nxb1 {[%clk 0:01:34.2]} 20. Bxa5 {[%clk 0:01:13.1]} 20... Qxa5 {[%clk
0:01:30.9]} 21. Rxb1 {[%clk 0:01:11.6]} 21... Qc3 {[%clk 0:01:18.5]} 22. Rd1
{[%clk 0:01:08.4]} 22... e5 {[%clk 0:01:04.9]} 23. Qd5 {[%clk 0:00:57]} 23...
exd4 {[%clk 0:01:00.8]} 24. Qxd7 {[%clk 0:00:56.6]} 24... Rcd8 {[%clk
0:00:57.7]} 25. Qf5 {[%clk 0:00:54.8]} 25... g6 {[%clk 0:00:55.6]} 26. Qf6
{[%clk 0:00:48.5]} 26... Qxc2 {[%clk 0:00:50.9]} 27. Rxd4 {[%clk 0:00:48.3]}
27... Rxd4 {[%clk 0:00:50]} 28. Qxd4 {[%clk 0:00:48.5]} 28... Qxa2 {[%clk
0:00:49.1]} 29. Qb6 {[%clk 0:00:47]} 29... Qe6 {[%clk 0:00:48.5]} 30. Qd4 {[%clk
0:00:45.2]} 30... Re8 {[%clk 0:00:43.4]} 31. Bg2 {[%clk 0:00:42.7]} 31... a5
{[%clk 0:00:38.1]} 32. Qa7 {[%clk 0:00:38.2]} 32... a4 {[%clk 0:00:36.2]} 33.
Qa5 {[%clk 0:00:34.6]} 33... Qe1+ {[%clk 0:00:35.3]} 0-1